bitfinex/quotes_BTCUSD_20260117
["timestamp","ask_amount","ask_price","bid_price","bid_amount"]
[1768614521126,0.01048371,95386.0,95383.0,0.01048404]
[1768614522142,0.01048371,95386.0,95383.0,0.0629042]
[1768614522332,0.01048371,95386.0,95383.0,0.01048404]
[1768614522568,0.00548371,95386.0,95383.0,0.01048404]
[1768614524774,0.00548371,95386.0,95383.0,0.06290419]
[1768614524977,0.00548371,95386.0,95383.0,0.01048404]
[1768614527591,0.06290189,95387.0,95383.0,0.01048404]
[1768614527828,0.0002151,95390.0,95387.0,0.0104836]
[1768614528160,0.0002151,95390.0,95387.0,0.0629016]
[1768614528390,0.01069837,95390.0,95387.0,0.0104836]
[1768614528754,0.01069837,95390.0,95386.0,0.06290225]
[1768614529313,0.01069837,95390.0,95387.0,0.0104836]
[1768614529698,0.22013755,95396.0,95388.0,0.0629006]
[1768614529699,0.01048272,95395.0,95388.0,0.0629006]
[1768614529918,0.01048272,95395.0,95388.0,0.01048349]
[1768614530117,0.01048272,95395.0,95392.0,0.01048305]
[1768614531345,0.01048272,95395.0,95391.0,0.01048316]
[1768614531839,0.01048294,95393.0,95390.0,0.01048327]
[1768614532484,0.06289771,95393.0,95389.0,0.01048338]
[1768614533504,0.01048283,95394.0,95390.0,0.01048327]
[1768614533714,0.06289772,95393.0,95389.0,0.01048338]
[1768614533960,0.01048305,95392.0,95389.0,0.01048338]
[1768614534591,0.01048294,95393.0,95390.0,0.01048327]
[1768614534848,0.01048283,95394.0,95391.0,0.01048316]
[1768614535588,0.01048283,95394.0,95391.0,0.06289899]
[1768614536019,0.06289661,95395.0,95391.0,0.01048316]
[1768614536443,0.01048272,95395.0,95391.0,0.06289887]
[1768614537075,0.01048272,95395.0,95392.0,0.01048305]
[1768614537287,0.01048272,95395.0,95392.0,0.01043755]
[1768614537719,0.01048272,95395.0,95392.0,0.01048305]
[1768614539074,0.01048272,95395.0,95392.0,0.06289833]
[1768614539288,0.01048283,95394.0,95390.0,0.0628996]
[1768614539498,0.06289712,95394.0,95390.0,0.01048327]
[1768614539709,0.01048294,95393.0,95390.0,0.01048327]
[1768614541324,0.01048283,95394.0,95390.0,0.06289944]
[1768614541533,0.06289717,95394.0,95390.0,0.01048327]
[1768614541745,0.01048283,95394.0,95390.0,0.06289957]
[1768614542183,0.01048272,95395.0,95391.0,0.01048316]
[1768614542429,0.01048272,95395.0,95391.0,0.0628986]
[1768614542658,0.01048272,95395.0,95391.0,0.01048316]
[1768614542869,0.01048272,95395.0,95391.0,0.06289884]
[1768614543298,0.01048272,95395.0,95392.0,0.06289833]
[1768614543510,0.01048272,95395.0,95392.0,0.01048305]
[1768614543749,0.01048272,95395.0,95391.0,0.01048316]
[1768614544202,0.06289704,95394.0,95391.0,0.01048316]
[1768614544478,0.01048283,95394.0,95391.0,0.01048316]
[1768614545156,0.01048272,95395.0,95391.0,0.01048316]
[1768614545392,0.01048283,95394.0,95391.0,0.01048316]
[1768614545598,0.01048283,95394.0,95391.0,0.06289899]
[1768614545885,0.01048283,95394.0,95391.0,0.01048316]
[1768614546292,0.06289705,95394.0,95391.0,0.01048316]
[1768614546644,0.01048283,95394.0,95391.0,0.01048316]
[1768614547411,0.01048283,95394.0,95390.0,0.01048327]
[1768614547828,0.01048283,95394.0,95390.0,0.06289963]
[1768614548645,0.01048283,95394.0,95391.0,0.05241582]
[1768614549286,0.01048283,95394.0,95391.0,0.01048316]
[1768614549489,0.01048283,95394.0,95390.0,0.01048327]
[1768614549702,0.06289738,95394.0,95390.0,0.01048327]
[1768614549899,0.01048283,95394.0,95390.0,0.06289964]
[1768614550314,0.01048283,95394.0,95389.0,0.01048338]
[1768614550315,0.01048305,95392.0,95389.0,0.01048338]
[1768614550732,0.01048305,95392.0,95389.0,0.06290029]
[1768614551477,0.01048305,95392.0,95389.0,0.01048338]
[1768614551761,0.01048305,95392.0,95389.0,0.0629003]
[1768614552183,0.01048305,95392.0,95389.0,0.01048338]
[1768614552393,0.06289844,95392.0,95388.0,0.01048349]
[1768614552835,0.01048316,95391.0,95388.0,0.01048349]
[1768614553246,0.01048316,95391.0,95388.0,0.0629008]
[1768614553456,0.01048305,95392.0,95389.0,0.06290006]
[1768614553936,0.01048305,95392.0,95389.0,0.01048338]
[1768614555505,0.01048305,95392.0,95389.0,0.06290032]
[1768614557184,0.01048305,95392.0,95389.0,0.01048338]
[1768614557326,0.01048316,95391.0,95388.0,0.01048349]
[1768614558447,0.06289919,95391.0,95388.0,0.01048349]
[1768614558796,0.01048316,95391.0,95388.0,0.01048349]
[1768614560818,0.01048305,95392.0,95388.0,0.06290088]
[1768614561641,0.01048305,95392.0,95389.0,0.01048338]
[1768614562640,0.01048305,95392.0,95389.0,0.06290012]
[1768614562847,0.01048305,95392.0,95389.0,0.01048338]
[1768614563162,0.01048305,95392.0,95389.0,0.06290011]
[1768614563347,0.01048294,95393.0,95389.0,0.06290011]
[1768614564436,0.01048294,95393.0,95390.0,0.01048327]
[1768614566371,0.01048305,95392.0,95389.0,0.01048338]
[1768614566796,0.01048294,95393.0,95389.0,0.01048338]
[1768614567016,0.01048305,95392.0,95388.0,0.01048349]
[1768614567224,0.06289877,95392.0,95388.0,0.01048349]
[1768614567429,0.01048316,95391.0,95388.0,0.01043799]
[1768614567656,0.01048316,95391.0,95388.0,0.0628554]
[1768614568225,0.01048316,95391.0,95388.0,0.01043799]
[1768614571584,0.01048305,95392.0,95388.0,0.06285517]
[1768614571768,0.06289852,95392.0,95388.0,0.01043799]
[1768614572428,0.06289905,95391.0,95388.0,0.01043799]
[1768614572630,0.01048327,95390.0,95387.0,0.18994161]
[1768614572844,0.01048327,95390.0,95387.0,0.1375236]
[1768614573043,0.01048316,95391.0,95387.0,0.1375236]
[1768614573790,0.01048305,95392.0,95388.0,0.01048349]
[1768614574342,0.01048316,95391.0,95387.0,0.1375236]
[1768614574531,0.01048327,95390.0,95387.0,0.12704]
[1768614575041,0.06289968,95390.0,95387.0,0.12704]
[1768614576188,0.06289968,95390.0,95387.0,0.1269945]
[1768614576677,0.01048316,95391.0,95387.0,0.18989578]
[1768614577667,0.01048316,95391.0,95388.0,0.01048349]
[1768614578077,0.01048305,95392.0,95388.0,0.01048349]
[1768614578280,0.01048316,95391.0,95388.0,0.01048349]
[1768614578492,0.062899,95391.0,95388.0,0.01048349]
[1768614578699,0.01048316,95391.0,95388.0,0.01048349]
[1768614580587,0.06289906,95391.0,95388.0,0.01048349]
[1768614581263,0.01048316,95391.0,95388.0,0.01048349]
[1768614581416,0.06289915,95391.0,95388.0,0.01048349]
[1768614581620,0.01048316,95391.0,95388.0,0.01048349]
[1768614582173,0.01048316,95391.0,95388.0,0.0104051]
[1768614582328,0.06289902,95391.0,95388.0,0.0104051]
[1768614582525,0.01048327,95390.0,95387.0,0.1374781]
[1768614583249,0.01048327,95390.0,95387.0,0.1269945]
[1768614583412,0.05241733,95389.0,95387.0,0.1269945]
[1768614583829,0.06290013,95390.0,95387.0,0.1269945]
[1768614584748,0.01048327,95390.0,95387.0,0.03598929]
[1768614584900,0.01048371,95386.0,95382.0,0.12704]
[1768614585229,0.01048371,95386.0,95373.0,0.1899508]
[1768614585230,0.05242239,95380.0,95373.0,0.1899508]
[1768614585432,0.01048481,95376.0,95373.0,5.45e-05]
[1768614585634,0.04736497,95374.0,95373.0,5.45e-05]
[1768614585849,0.05785055,95369.0,95366.0,0.0001606]
[1768614586051,0.05780134,95366.0,95361.0,0.01048646]
[1768614586260,0.04731543,95366.0,95363.0,0.01048624]
[1768614586469,0.04731543,95366.0,95363.0,0.06291745]
[1768614586677,0.04731543,95366.0,95363.0,0.01048624]
[1768614587445,0.04731543,95366.0,95363.0,0.06291744]
[1768614588005,0.04731543,95366.0,95363.0,0.01048624]
[1768614588451,0.04731543,95366.0,95364.0,0.05243018]
[1768614588633,0.04731543,95366.0,95365.0,0.05243013]
[1768614589290,0.04731543,95366.0,95364.0,0.05243066]
[1768614589922,0.04731543,95366.0,95363.0,0.06291733]
[1768614590566,0.04731543,95366.0,95364.0,0.05243052]
[1768614590996,0.04736497,95370.0,95366.0,0.01048591]
[1768614591208,0.04736497,95370.0,95366.0,0.0629153]
[1768614591585,0.04736497,95370.0,95367.0,0.0104858]
[1768614591792,0.06291287,95370.0,95367.0,0.0104858]
[1768614591992,0.04922568,95369.0,95366.0,0.06291535]
[1768614592203,0.04922568,95369.0,95366.0,0.06291546]
[1768614592604,0.04922568,95369.0,95366.0,0.01048591]
[1768614593011,0.05971126,95369.0,95364.0,0.01048613]
[1768614593357,0.05971137,95368.0,95364.0,0.01048613]
[1768614593666,0.05971137,95368.0,95365.0,0.01048602]
[1768614594451,0.0629149,95367.0,95362.0,0.06291793]
[1768614594653,0.01048591,95366.0,95363.0,0.01048624]
[1768614594833,0.05971137,95368.0,95364.0,0.06291664]
[1768614595216,0.0104858,95367.0,95364.0,0.01048613]
[1768614595841,0.01048591,95366.0,95358.0,0.26380528]
[1768614596053,0.0104858,95367.0,95363.0,0.01048624]
[1768614596883,0.01048591,95366.0,95358.0,0.26380528]
[1768614597064,0.06291559,95366.0,95361.0,0.01048646]
[1768614598305,0.01048602,95365.0,95361.0,0.01048646]
[1768614599051,0.06291624,95365.0,95361.0,0.01048646]
[1768614599521,0.01048602,95365.0,95361.0,0.06291871]
[1768614599733,0.01048602,95365.0,95362.0,0.01048635]
[1768614600141,0.01048591,95366.0,95362.0,0.06291797]
[1768614600562,0.01048591,95366.0,95362.0,0.01048635]
[1768614600833,0.06291617,95365.0,95362.0,0.01048635]
[1768614601031,0.01048602,95365.0,95362.0,0.01048635]
[1768614601324,0.01048591,95366.0,95363.0,0.0629174]
[1768614601811,0.04922568,95368.0,95364.0,0.01048613]
[1768614602035,0.05971137,95368.0,95365.0,0.01048602]
[1768614602577,0.11213993,95368.0,95365.0,0.01048602]
[1768614602786,0.0104858,95367.0,95363.0,0.01048624]
[1768614602981,0.11213993,95368.0,95357.0,0.0001606]
[1768614602982,0.01048657,95360.0,95357.0,0.0001606]
[1768614603199,0.01048624,95363.0,95359.0,0.01048668]
[1768614603399,0.01048624,95363.0,95359.0,0.06291999]
[1768614603622,0.01048624,95363.0,95359.0,0.06291964]
[1768614603820,0.06291765,95363.0,95359.0,0.01048668]
[1768614604001,0.01048646,95361.0,95357.0,0.0106475]
[1768614604340,0.01048646,95361.0,95357.0,0.06308192]
[1768614604341,0.01048657,95360.0,95357.0,0.06308192]
[1768614604755,0.01048646,95361.0,95358.0,0.01048679]
[1768614606949,0.01048591,95366.0,95359.0,0.01048668]
[1768614607175,0.06291653,95365.0,95361.0,0.01048646]
[1768614607369,0.05971148,95367.0,95362.0,0.01048635]
[1768614607574,0.11214056,95367.0,95362.0,0.06291803]
[1768614607750,0.11214056,95367.0,95363.0,0.05243119]
[1768614607930,0.01048602,95365.0,95360.0,0.01048657]
[1768614608137,0.01048613,95364.0,95361.0,0.01048646]
[1768614608338,0.01048646,95361.0,95357.0,0.0106475]
[1768614608539,0.04922568,95362.0,95359.0,0.01048668]
[1768614608738,0.04922568,95362.0,95359.0,0.06291996]
[1768614609066,0.01048657,95360.0,95357.0,0.0001606]
[1768614609305,0.01048646,95361.0,95357.0,0.06308154]
[1768614609538,0.06291887,95361.0,95357.0,0.0106475]
[1768614609733,0.01048646,95361.0,95357.0,0.0106475]
[1768614610114,0.01048624,95363.0,95359.0,0.06291989]
[1768614610316,0.01048624,95363.0,95359.0,0.01048668]
[1768614610904,0.06291764,95363.0,95359.0,0.01048668]
[1768614611316,0.01048613,95364.0,95360.0,0.01048657]
[1768614611508,0.04922568,95365.0,95361.0,0.06291858]
[1768614611714,0.04922568,95365.0,95362.0,0.01048635]
[1768614612258,0.04922568,95365.0,95362.0,0.06291795]
[1768614612466,0.04922568,95365.0,95362.0,0.01048635]
[1768614612820,0.04922568,95365.0,95362.0,0.06291812]
[1768614613046,0.04922568,95365.0,95362.0,0.01044086]
[1768614613485,0.0597117,95365.0,95362.0,0.01044086]
[1768614613965,0.04922568,95365.0,95362.0,0.0628726]
[1768614614327,0.06291375,95369.0,95364.0,0.06291661]
[1768614614328,0.01048558,95369.0,95364.0,0.06291661]
[1768614614549,0.04922568,95369.0,95366.0,0.06291539]
[1768614614732,0.04922568,95369.0,95366.0,0.01048591]
[1768614614968,0.04922568,95368.0,95365.0,0.01044054]
[1768614616334,0.05971137,95368.0,95365.0,0.01044054]
[1768614617073,0.05971137,95368.0,95365.0,0.06287052]
[1768614617667,0.04922568,95368.0,95365.0,0.06287052]
[1768614617999,0.04922568,95368.0,95366.0,0.05242957]
[1768614618455,0.04922568,95368.0,95366.0,0.05242916]
[1768614618611,0.04922568,95368.0,95367.0,0.05242903]
[1768614619050,0.04922568,95368.0,95365.0,0.01044054]
[1768614619208,0.05971137,95368.0,95362.0,0.01048635]
[1768614619415,0.04922568,95368.0,95366.0,0.05242915]
[1768614619663,0.04922568,95368.0,95365.0,0.01048602]
[1768614620029,0.04922568,95368.0,95367.0,0.05242903]
[1768614620232,0.04922568,95368.0,95365.0,0.06291565]
[1768614620440,0.04922568,95368.0,95366.0,0.05242913]
[1768614620838,0.04922568,95368.0,95365.0,0.06291565]
[1768614621085,0.04922568,95368.0,95366.0,0.05242913]
[1768614621284,0.04922568,95368.0,95367.0,0.05242903]
[1768614622091,0.05715804,95371.0,95367.0,0.06291483]
[1768614622307,0.05715804,95371.0,95367.0,0.06291446]
[1768614622944,0.04667268,95370.0,95367.0,0.0104858]
[1768614623290,0.05715815,95370.0,95367.0,0.0104858]
[1768614623499,0.05715826,95369.0,95365.0,0.01048602]
[1768614623674,0.06291523,95367.0,95363.0,0.01048624]
[1768614623835,0.06291523,95367.0,95364.0,0.01048613]
[1768614623836,0.05715848,95367.0,95364.0,0.01048613]
[1768614625555,0.04667268,95367.0,95363.0,0.01048624]
[1768614625755,0.04667268,95367.0,95363.0,0.06291736]
[1768614625964,0.05715848,95367.0,95364.0,0.01048613]
[1768614626332,0.04667268,95367.0,95366.0,0.05242958]
[1768614626936,0.04667268,95370.0,95367.0,0.06291438]
[1768614627141,0.04667268,95370.0,95368.0,0.05242845]
[1768614627352,0.01048536,95371.0,95368.0,0.06291414]
[1768614627563,0.05715804,95371.0,95368.0,0.06291414]
[1768614627773,0.04667268,95371.0,95368.0,0.06286865]
[1768614628380,0.04667268,95371.0,95368.0,0.01048569]
[1768614628590,0.04667268,95371.0,95368.0,0.06291375]
[1768614628815,0.04667268,95371.0,95368.0,0.01048569]
[1768614629023,0.05715804,95371.0,95367.0,0.0104858]
[1768614629224,0.04667268,95370.0,95367.0,0.0104858]
[1768614629756,0.03667268,95370.0,95367.0,0.0104858]
[1768614630011,0.03667268,95370.0,95367.0,0.06291473]
[1768614630215,0.03667268,95370.0,95367.0,0.0104858]
[1768614630636,0.01048569,95368.0,95364.0,0.01048613]
[1768614630848,0.01048591,95366.0,95363.0,0.01048624]
[1768614631080,0.0104858,95367.0,95364.0,0.01048613]
[1768614631277,0.0104858,95367.0,95364.0,0.06291675]
[1768614631884,0.01048569,95368.0,95365.0,0.06291603]
[1768614632085,0.01048558,95369.0,95365.0,0.06291603]
[1768614632848,0.06291354,95369.0,95365.0,0.06291603]
[1768614633242,0.03667268,95370.0,95366.0,0.06291532]
[1768614633442,0.09958557,95370.0,95366.0,0.01048591]
[1768614633648,0.04715815,95370.0,95366.0,0.01048591]
[1768614633857,0.09958606,95370.0,95366.0,0.01048591]
[1768614634279,0.01048558,95369.0,95366.0,0.01048591]
[1768614634484,0.01048569,95368.0,95363.0,0.01048624]
[1768614634693,0.01048602,95365.0,95362.0,0.01048635]
[1768614634903,0.01048602,95365.0,95361.0,0.05243198]
[1768614635112,0.01048602,95365.0,95360.0,0.06291925]
[1768614635334,0.01048602,95365.0,95361.0,0.05243233]
[1768614635535,0.01048602,95365.0,95360.0,0.06291925]
[1768614635536,0.01048558,95369.0,95365.0,0.01048602]
[1768614635740,0.01048558,95369.0,95366.0,0.01044042]
[1768614635943,0.04715815,95370.0,95367.0,0.06291481]
[1768614636149,0.03667268,95370.0,95367.0,0.0104858]
[1768614636357,0.03667268,95370.0,95368.0,0.05242827]
[1768614636945,0.03667268,95370.0,95367.0,0.06291458]
[1768614637098,0.03667268,95370.0,95369.0,0.05242793]
[1768614637326,0.04515119,95372.0,95371.0,0.05242683]
[1768614637557,0.003144,95371.0,95370.0,0.06291276]
[1768614637773,0.003144,95371.0,95370.0,0.01048547]
[1768614638919,0.003144,95371.0,95368.0,0.06291369]
[1768614639070,0.003144,95371.0,95369.0,0.05242793]
[1768614639447,0.003144,95371.0,95368.0,0.01048569]
[1768614640090,0.003144,95371.0,95368.0,0.06291402]
[1768614640500,0.003144,95371.0,95369.0,0.05242789]
[1768614640720,0.003144,95371.0,95370.0,0.05242738]
[1768614640933,0.003144,95371.0,95369.0,0.05242786]
[1768614641142,0.003144,95371.0,95368.0,0.01048569]
[1768614641348,0.003144,95371.0,95368.0,0.06291388]
[1768614642729,0.003144,95371.0,95368.0,0.01048569]
[1768614642930,0.003144,95371.0,95370.0,0.05242738]
[1768614643143,0.003144,95371.0,95369.0,0.05242787]
[1768614643802,0.003144,95371.0,95368.0,0.06291401]
[1768614644281,0.003144,95371.0,95369.0,0.05242785]
[1768614644973,0.003144,95371.0,95369.0,0.05242739]
[1768614645239,0.003144,95371.0,95370.0,0.05242738]
[1768614645465,0.003144,95371.0,95370.0,0.05190339]
[1768614646125,0.04515119,95375.0,95373.0,0.01048514]
[1768614646347,0.04515119,95375.0,95373.0,1e-08]
[1768614646558,0.04515119,95375.0,95373.0,0.06291086]
[1768614646783,0.04515119,95375.0,95373.0,0.01048515]
[1768614647269,0.04515119,95375.0,95373.0,1e-08]
[1768614647740,0.04515119,95374.0,95373.0,1e-08]
[1768614647966,0.09757637,95374.0,95373.0,1e-08]
[1768614648415,0.04515119,95374.0,95373.0,1e-08]
[1768614648667,0.09757637,95374.0,95373.0,1e-08]
[1768614649341,0.04515119,95374.0,95373.0,1e-08]
[1768614655108,0.22465637,95374.0,95373.0,1e-08]
[1768614655309,0.17223119,95374.0,95373.0,1e-08]
[1768614656213,0.01048547,95370.0,95364.0,0.01048613]
[1768614656426,0.0629129,95370.0,95365.0,0.06291569]
[1768614656641,0.01048547,95370.0,95366.0,0.0524292]
[1768614656792,0.06291167,95372.0,95367.0,0.0629148]
[1768614656987,0.01048525,95372.0,95368.0,0.06291414]
[1768614657188,0.06291156,95372.0,95368.0,0.01048569]
[1768614657417,0.01048525,95372.0,95369.0,0.01048558]
[1768614657966,0.01048514,95373.0,95370.0,0.01048547]
[1768614658175,0.17223119,95374.0,95370.0,0.0629127]
[1768614658376,0.01048514,95373.0,95370.0,0.01048547]
[1768614658491,0.06291088,95373.0,95370.0,0.01048547]
[1768614658907,0.06291088,95373.0,95369.0,0.01048558]
[1768614659104,0.01048525,95372.0,95369.0,0.01048558]
[1768614659555,0.01048514,95373.0,95369.0,0.06291331]
[1768614659757,0.01048514,95373.0,95369.0,0.01048558]
[1768614659960,0.01048525,95372.0,95368.0,0.01048569]
[1768614660250,0.06291193,95372.0,95368.0,0.01048569]
[1768614660639,0.01048536,95371.0,95368.0,0.01048569]
[1768614660844,0.06291257,95371.0,95367.0,0.0104858]
[1768614662164,0.01048547,95370.0,95367.0,0.0104858]
[1768614662299,0.01039448,95370.0,95367.0,0.0104858]
[1768614662949,0.01048558,95369.0,95366.0,0.06291545]
[1768614663159,0.01039448,95370.0,95366.0,0.06291545]
[1768614663365,0.06282191,95370.0,95366.0,0.01048591]
[1768614663689,0.06282191,95370.0,95366.0,0.06291547]
[1768614663904,0.01039448,95370.0,95366.0,0.06291547]
[1768614664115,0.01048536,95371.0,95367.0,0.0104858]
[1768614664279,0.01048536,95371.0,95367.0,0.06291439]
[1768614664478,0.01048547,95370.0,95367.0,0.0104858]
[1768614664646,0.01048536,95371.0,95367.0,0.0629148]
[1768614664841,0.01048547,95370.0,95366.0,0.01048591]
[1768614665090,0.01048547,95370.0,95367.0,0.0104858]
[1768614665264,0.06291287,95370.0,95367.0,0.0104858]
[1768614665467,0.01048547,95370.0,95367.0,0.0104858]
[1768614665673,0.01048536,95371.0,95367.0,0.0104858]
[1768614665906,0.01048547,95370.0,95367.0,0.0104858]
[1768614666107,0.12708,95374.0,95367.0,0.0104858]
[1768614666322,0.17950522,95374.0,95367.0,0.06291483]
[1768614666544,0.17950522,95374.0,95372.0,0.01048525]
[1768614666545,0.12708,95374.0,95372.0,0.01048525]
[1768614668513,0.12708,95374.0,95372.0,0.06291109]
[1768614668714,0.12708,95374.0,95373.0,0.05242573]
[1768614669326,0.12708,95374.0,95372.0,0.01048525]
[1768614670343,0.12708,95374.0,95373.0,0.05242573]
[1768614672551,0.12708,95374.0,95372.0,0.06291137]
[1768614673527,0.12708,95374.0,95373.0,0.05242573]
[1768614673728,0.12708,95374.0,95372.0,0.06291139]
[1768614673931,0.12708,95374.0,95372.0,0.01048525]
[1768614674130,0.12708,95374.0,95372.0,0.06291133]
[1768614674759,0.12708,95374.0,95372.0,0.01048525]
[1768614675966,0.12708,95374.0,95372.0,0.06291128]
[1768614676353,0.12708,95374.0,95372.0,0.06291138]
[1768614676553,0.12708,95374.0,95372.0,0.01048525]
[1768614677425,0.12708,95374.0,95372.0,0.06291113]
[1768614677844,0.12708,95374.0,95372.0,0.01048525]
[1768614678455,0.12708,95374.0,95372.0,0.06291099]
[1768614679262,0.12708,95374.0,95373.0,0.05242573]
[1768614679617,0.12708,95374.0,95372.0,0.0629111]
[1768614679942,0.12708,95374.0,95372.0,0.01048525]
[1768614681693,0.12708,95374.0,95372.0,0.0629115]
[1768614681917,0.12708,95374.0,95372.0,0.01048525]
[1768614682502,0.12708,95374.0,95372.0,0.06291149]
[1768614683020,0.12708,95374.0,95372.0,0.01048525]
[1768614683424,0.12708,95374.0,95372.0,0.06291147]
[1768614684670,0.12708,95374.0,95372.0,0.01048525]
[1768614685067,0.12708,95374.0,95371.0,0.062912]
[1768614685303,0.12708,95374.0,95371.0,0.06291211]
[1768614685544,0.12708,95374.0,95372.0,0.05242624]
[1768614685743,0.12708,95374.0,95371.0,0.01048536]
[1768614686093,0.12708,95374.0,95371.0,0.06291203]
[1768614686311,0.12708,95374.0,95371.0,0.06291174]
[1768614687288,0.12708,95374.0,95371.0,0.0629118]
[1768614687404,0.12708,95374.0,95372.0,0.05242588]
[1768614688314,0.12708,95374.0,95373.0,0.05242573]
[1768614689838,0.05242213,95380.0,95373.0,0.05242573]
[1768614689839,0.01048426,95381.0,95376.0,0.01048481]
[1768614690036,0.01048426,95381.0,95377.0,0.0104847]
[1768614690037,0.12708,95380.0,95377.0,0.0104847]
[1768614690209,0.12708,95380.0,95377.0,0.06290791]
[1768614690406,0.12708,95380.0,95377.0,0.0104847]
[1768614690982,0.12708,95380.0,95377.0,0.06290819]
[1768614691674,0.12708,95380.0,95377.0,0.0104847]
[1768614691814,0.13756437,95380.0,95377.0,0.0104847]
[1768614693337,0.13756437,95380.0,95377.0,0.06290814]
[1768614694157,0.12708,95380.0,95377.0,0.06290814]
[1768614694604,0.12708,95380.0,95377.0,0.0104847]
[1768614695696,0.12708,95380.0,95377.0,0.06290815]
[1768614696201,0.12708,95380.0,95377.0,0.06290814]
[1768614696358,0.12708,95380.0,95377.0,0.0104847]
[1768614696554,0.12708,95380.0,95377.0,0.06290818]
[1768614697266,0.12708,95380.0,95377.0,0.0104847]
[1768614699185,0.12708,95380.0,95377.0,0.06290815]
[1768614699619,0.12708,95380.0,95377.0,0.0104847]
[1768614700378,0.12708,95380.0,95377.0,0.06290815]
[1768614702479,0.12708,95380.0,95378.0,0.05242297]
[1768614704510,0.12708,95380.0,95377.0,0.0104847]
[1768614704704,0.12708,95380.0,95377.0,0.0629082]
[1768614708744,0.12708,95380.0,95377.0,0.0104847]
[1768614709804,0.12708,95380.0,95377.0,0.06290809]
[1768614711393,0.12708,95380.0,95377.0,0.0104847]
[1768614711590,0.12708,95380.0,95377.0,0.06290812]
[1768614712148,0.18998631,95380.0,95376.0,0.01048481]
[1768614712390,0.01048448,95379.0,95376.0,0.01048481]
[1768614712604,0.01048448,95379.0,95376.0,0.06290872]
[1768614712808,0.13756437,95380.0,95376.0,0.06290872]
[1768614713206,0.13756437,95380.0,95377.0,0.06290812]
[1768614713475,0.13756437,95380.0,95377.0,0.0104847]
[1768614713621,0.13756437,95380.0,95377.0,0.06290814]
[1768614713842,0.18998631,95380.0,95377.0,0.0104847]
[1768614714004,0.13756437,95380.0,95377.0,0.0104847]
[1768614714212,0.12708,95380.0,95377.0,0.0104847]
[1768614714822,0.18998642,95380.0,95377.0,0.0104847]
[1768614715201,0.13756437,95380.0,95377.0,0.0104847]
[1768614717746,0.18998628,95380.0,95377.0,0.0104847]
[1768614717956,0.13756437,95380.0,95377.0,0.0104847]
[1768614718374,0.13756437,95380.0,95377.0,0.06290813]
[1768614718584,0.13756437,95380.0,95377.0,0.0104847]
[1768614719221,0.13756437,95380.0,95371.0,0.01048536]
[1768614719222,0.01048492,95375.0,95371.0,0.01048536]
[1768614719435,0.01048503,95374.0,95370.0,0.26376117]
[1768614719651,0.01048503,95374.0,95370.0,0.06291276]
[1768614720060,0.01048514,95373.0,95369.0,0.01048558]
[1768614720263,0.01048536,95371.0,95367.0,0.06291431]
[1768614720465,0.01048525,95372.0,95368.0,0.06291381]
[1768614720671,0.01048525,95372.0,95368.0,0.01048569]
[1768614721454,0.01048525,95372.0,95369.0,0.01048558]
[1768614721834,0.01048514,95373.0,95369.0,0.062913]
[1768614722037,0.01048514,95373.0,95370.0,0.06291276]
[1768614722394,0.01048503,95374.0,95370.0,0.06291276]
[1768614722998,0.01048514,95373.0,95370.0,0.01048547]
[1768614723347,0.01048492,95375.0,95371.0,0.01048536]
[1768614723564,0.01048503,95374.0,95371.0,0.01048536]
[1768614724121,0.01048503,95374.0,95371.0,0.01043987]
[1768614724326,0.01048503,95374.0,95371.0,0.06286656]
[1768614724685,0.01048503,95374.0,95371.0,0.06282107]
[1768614724892,0.01048503,95374.0,95371.0,0.01039438]
[1768614726797,0.01048492,95375.0,95371.0,0.06282108]
[1768614727005,0.01048492,95375.0,95372.0,0.01048525]
[1768614727218,0.06290956,95375.0,95372.0,0.01048525]
[1768614727428,0.06291025,95374.0,95371.0,0.01039438]
[1768614728455,0.01048492,95375.0,95371.0,0.01039438]
[1768614728727,0.01048492,95375.0,95371.0,0.06282072]
[1768614731017,0.01048492,95375.0,95372.0,0.01048525]
[1768614731847,0.01048492,95375.0,95371.0,0.01039438]
[1768614732052,0.01048492,95375.0,95372.0,0.01048525]
[1768614732246,0.01048492,95375.0,95372.0,0.0629113]
[1768614732577,0.01048492,95375.0,95372.0,0.01048525]
[1768614732928,0.01048492,95375.0,95372.0,0.06291124]
[1768614733136,0.01048492,95375.0,95371.0,0.06282108]
[1768614733137,0.01048492,95375.0,95371.0,0.01039438]
[1768614733390,0.01048503,95374.0,95370.0,0.01048547]
[1768614733552,0.01048503,95374.0,95371.0,0.01048536]
[1768614733757,0.01048503,95374.0,95371.0,0.06291193]
[1768614734100,0.01048492,95375.0,95371.0,0.06291216]
[1768614734424,0.01048492,95375.0,95372.0,0.06291146]
[1768614734635,0.01048492,95375.0,95372.0,0.01048525]
[1768614735044,0.0104847,95377.0,95372.0,0.01048525]
[1768614735269,0.01048514,95373.0,95370.0,0.01048547]
[1768614735473,0.01048481,95376.0,95371.0,0.01048536]
[1768614735663,0.06290908,95376.0,95371.0,0.0629121]
[1768614735927,0.01048503,95374.0,95371.0,0.01048536]
[1768614736313,0.01048503,95374.0,95371.0,0.06291201]
[1768614736520,0.01048492,95375.0,95372.0,0.01048525]
[1768614737238,0.06290961,95375.0,95372.0,0.01048525]
[1768614737441,0.06291022,95374.0,95370.0,0.01048547]
[1768614737640,0.01048492,95375.0,95371.0,0.01048536]
[1768614737970,0.01048503,95374.0,95370.0,0.01048547]
[1768614738187,0.05242576,95373.0,95370.0,0.01048547]
[1768614738393,0.06291032,95374.0,95370.0,0.01048547]
[1768614738800,0.01048514,95373.0,95370.0,0.01048547]
[1768614739734,0.01048492,95375.0,95371.0,0.01048536]
[1768614740159,0.06290993,95375.0,95371.0,0.01048536]
[1768614740751,0.01048503,95374.0,95371.0,0.01048536]
[1768614740980,0.01048492,95375.0,95372.0,0.01048525]
[1768614741788,0.06290958,95375.0,95372.0,0.01048525]
[1768614741991,0.01048492,95375.0,95371.0,0.01048536]
[1768614742187,0.01048492,95375.0,95371.0,0.06291181]
[1768614742325,0.01048492,95375.0,95372.0,0.01048525]
[1768614743401,0.01048481,95376.0,95372.0,0.06291116]
[1768614743581,0.01048492,95375.0,95371.0,0.01048536]
[1768614743802,0.01048492,95375.0,95372.0,0.01048525]
[1768614744780,0.01048503,95374.0,95371.0,0.01048536]
[1768614744989,0.06291061,95374.0,95370.0,0.01048547]
[1768614745143,0.01048514,95373.0,95370.0,0.01048547]
[1768614745743,0.01048492,95375.0,95371.0,0.06291165]
[1768614745966,0.06290965,95375.0,95371.0,0.01048536]
[1768614746367,0.01048503,95374.0,95371.0,0.01048536]
[1768614746529,0.06291024,95374.0,95371.0,0.01048536]
[1768614746733,0.01048514,95373.0,95370.0,0.01048547]
[1768614747900,0.06291088,95373.0,95370.0,0.01048547]
[1768614748264,0.01048514,95373.0,95370.0,0.01048547]
[1768614748982,0.01048514,95373.0,95370.0,0.06291279]
[1768614749186,0.01048514,95373.0,95370.0,0.01048547]
[1768614750433,0.01048503,95374.0,95370.0,0.01048547]
[1768614750825,0.01048492,95375.0,95371.0,0.01048536]
[1768614751048,0.01048492,95375.0,95371.0,0.06291215]